fUSD/lending_fUSD_20260703
["ID","MTS","AMOUNT","RATE_DAILY","PERIOD"]
[426947572,1783048231000,-151.0,0.00020714,2]
[426947570,1783048231000,-151.0,0.00020714,2]
[426947571,1783048231000,-150.0,0.00020714,2]
[426947574,1783048231000,-151.0,0.00020714,2]
[426947569,1783048231000,-151.0,0.00020714,2]
[426947576,1783048231000,-150.0,0.00020714,2]
[426947562,1783048231000,-152.0,0.00020713,2]
[426947577,1783048231000,-150.0,0.00020714,2]
[426947573,1783048231000,-153.0,0.00020714,2]
[426947559,1783048231000,-151.0,0.00020713,2]
[426947553,1783048231000,-152.0,0.00020713,2]
[426947563,1783048231000,-150.0,0.00020713,2]
[426947543,1783048231000,-150.0,0.00020427,2]
[426947548,1783048231000,-151.0,0.00020713,2]
[426947549,1783048231000,-150.0,0.00020713,2]
[426947546,1783048231000,-405.0,0.00020712,2]
[426947547,1783048231000,-153.0,0.00020713,2]
[426947550,1783048231000,-153.0,0.00020713,2]
[426947551,1783048231000,-150.0,0.00020713,2]
[426947556,1783048231000,-151.0,0.00020713,2]
[426947545,1783048231000,-204.0,0.00020704,2]
[426947544,1783048231000,-388.10692119,0.00020498,2]
[426947554,1783048231000,-150.0,0.00020713,2]
[426947578,1783048231000,-151.0,0.00020714,2]
[426947555,1783048231000,-151.0,0.00020713,2]
[426947557,1783048231000,-151.0,0.00020713,2]
[426947561,1783048231000,-151.0,0.00020713,2]
[426947558,1783048231000,-151.0,0.00020713,2]
[426947552,1783048231000,-152.0,0.00020713,2]
[426947580,1783048231000,-151.0,0.00020714,2]
[426947595,1783048231000,-1258.04,0.00023537,2]
[426947579,1783048231000,-150.0,0.00020714,2]
[426947620,1783048231000,-167.14,0.00024544,2]
[426947619,1783048231000,-486.17,0.00024504,2]
[426947617,1783048231000,-5000.0,0.00024382,2]
[426947609,1783048231000,-913.23,0.00024115,2]
[426947611,1783048231000,-159.36331563,0.00024115,2]
[426947615,1783048231000,-280.0,0.00024116,2]
[426947616,1783048231000,-999.51,0.00024313,2]
[426947621,1783048231000,-389.89,0.00024594,2]
[426947623,1783048231000,-183.99,0.00024658,2]
[426947622,1783048231000,-200.0,0.00024608,2]
[426947624,1783048231000,-184.29,0.00024658,2]
[426947626,1783048231000,-538.51,0.00024757,2]
[426947627,1783048231000,-164.73,0.00024827,2]
[426947625,1783048231000,-184.06,0.00024658,2]
[426947582,1783048231000,-151.0,0.00020714,2]
[426947618,1783048231000,-155.54209055,0.00024397,2]
[426947607,1783048231000,-152.85,0.00024082,2]
[426947613,1783048231000,-420.0,0.00024116,2]
[426947603,1783048231000,-183.97,0.00024029,2]
[426947605,1783048231000,-1180.81,0.00024044,2]
[426947581,1783048231000,-151.0,0.00020714,2]
[426947584,1783048231000,-150.0,0.00020714,2]
[426947583,1783048231000,-150.0,0.00020714,2]
[426947587,1783048231000,-152.0,0.00020714,2]
[426947586,1783048231000,-150.0,0.00020714,2]
[426947588,1783048231000,-150.0,0.00020714,2]
[426947589,1783048231000,-370.0,0.00020714,12]
[426947585,1783048231000,-151.0,0.00020714,2]
[426947592,1783048231000,-2147.15,0.00021273,2]
[426947593,1783048231000,-1544.92898921,0.0002247,120]
[426947590,1783048231000,-445.75,0.00021273,2]
[426947594,1783048231000,-209.65092978,0.0002247,2]
[426947601,1783048231000,-389.89,0.00023994,2]
[426947596,1783048231000,-150.0,0.00023927,2]
[426947599,1783048231000,-285.87,0.00023994,2]
[426947591,1783048231000,-6381.27,0.00021273,2]
[426947649,1783048232000,-500.0,0.00025271,2]
[426947650,1783048232000,-216.47136167,0.00025271,2]
[426947654,1783048232000,-500.0,0.00025271,2]
[426947657,1783048232000,-500.0,0.00025271,2]
[426947658,1783048232000,-500.0,0.00025271,2]
[426947648,1783048232000,-501.55822741,0.00025271,2]
[426947652,1783048232000,-500.0,0.00025271,2]
[426947655,1783048232000,-500.0,0.00025271,2]
[426947656,1783048232000,-500.0,0.00025271,2]
[426947653,1783048232000,-500.0,0.00025271,2]
[426947659,1783048232000,-500.0,0.00025271,2]
[426947660,1783048232000,-500.0,0.00025271,2]
[426947661,1783048232000,-500.0,0.00025271,2]
[426947663,1783048232000,-500.0,0.00025271,2]
[426947647,1783048232000,-500.0,0.00025271,2]
[426947651,1783048232000,-500.0,0.00025271,2]
[426947646,1783048232000,-406.92182205,0.00025271,2]
[426947664,1783048232000,-500.0,0.00025271,2]
[426947642,1783048232000,-500.0,0.00025271,2]
[426947629,1783048232000,-200.0,0.00025045,2]
[426947630,1783048232000,-200.0,0.00025045,2]
[426947628,1783048232000,-216.74224685,0.00024957,2]
[426947632,1783048232000,-389.89,0.00025193,2]
[426947631,1783048232000,-376.0,0.00025045,2]
[426947633,1783048232000,-25731.937499,0.00025263,2]
[426947634,1783048232000,-700.0,0.00025263,2]
[426947645,1783048232000,-500.0,0.00025271,2]
[426947635,1783048232000,-382.56411821,0.00025263,2]
[426947638,1783048232000,-1441.23624635,0.00025263,2]
[426947637,1783048232000,-2000.0,0.00025263,2]
[426947639,1783048232000,-44355.63335339,0.00025263,2]
[426947640,1783048232000,-500.0,0.00025271,2]
[426947641,1783048232000,-500.0,0.00025271,2]
[426947643,1783048232000,-500.0,0.00025271,2]
[426947644,1783048232000,-500.0,0.00025271,2]
[426947636,1783048232000,-1262.12334324,0.00025263,2]
[426947662,1783048232000,-500.0,0.00025271,2]
[426947683,1783048232000,-500.0,0.00025271,2]
[426947665,1783048232000,-500.0,0.00025271,2]
[426947687,1783048232000,-500.0,0.00025271,2]
[426947696,1783048232000,-500.0,0.00025271,2]
[426947688,1783048232000,-500.0,0.00025271,2]
[426947693,1783048232000,-500.0,0.00025271,2]
[426947690,1783048232000,-500.0,0.00025271,2]
[426947694,1783048232000,-500.0,0.00025271,2]
[426947689,1783048232000,-500.0,0.00025271,2]
[426947686,1783048232000,-500.0,0.00025271,2]
[426947692,1783048232000,-500.0,0.00025271,2]
[426947697,1783048232000,-500.0,0.00025271,2]
[426947699,1783048232000,-500.0,0.00025271,2]
[426947698,1783048232000,-500.0,0.00025271,2]
[426947703,1783048232000,-500.0,0.00025271,2]
[426947702,1783048232000,-500.0,0.00025271,2]
[426947700,1783048232000,-500.0,0.00025271,2]
[426947666,1783048232000,-500.0,0.00025271,2]
[426947695,1783048232000,-500.0,0.00025271,2]
[426947685,1783048232000,-500.0,0.00025271,2]
[426947691,1783048232000,-500.0,0.00025271,2]
[426947701,1783048232000,-500.0,0.00025271,2]
[426947667,1783048232000,-500.0,0.00025271,2]
[426947680,1783048232000,-500.0,0.00025271,2]
[426947670,1783048232000,-500.0,0.00025271,2]
[426947669,1783048232000,-500.0,0.00025271,2]
[426947668,1783048232000,-500.0,0.00025271,2]
[426947673,1783048232000,-500.0,0.00025271,2]
[426947672,1783048232000,-500.0,0.00025271,2]
[426947675,1783048232000,-212.76960828,0.00025271,2]
[426947671,1783048232000,-500.0,0.00025271,2]
[426947677,1783048232000,-500.0,0.00025271,2]
[426947676,1783048232000,-238.48812422,0.00025271,2]
[426947678,1783048232000,-500.0,0.00025271,2]
[426947679,1783048232000,-500.0,0.00025271,2]
[426947684,1783048232000,-500.0,0.00025271,2]
[426947681,1783048232000,-500.0,0.00025271,2]
[426947674,1783048232000,-500.0,0.00025271,2]
[426947682,1783048232000,-500.0,0.00025271,2]
[426947731,1783048233000,-300.0,0.00025271,2]
[426947741,1783048233000,-500.0,0.00025271,2]
[426947737,1783048233000,-500.0,0.00025271,2]
[426947735,1783048233000,-500.0,0.00025271,2]
[426947736,1783048233000,-500.0,0.00025271,2]
[426947734,1783048233000,-500.0,0.00025271,2]
[426947733,1783048233000,-500.0,0.00025271,2]
[426947740,1783048233000,-500.0,0.00025271,2]
[426947732,1783048233000,-500.0,0.00025271,2]
[426947739,1783048233000,-500.0,0.00025271,2]
[426947748,1783048233000,-500.0,0.00025271,2]
[426947742,1783048233000,-500.0,0.00025271,2]
[426947745,1783048233000,-500.0,0.00025271,2]
[426947744,1783048233000,-500.0,0.00025271,2]
[426947749,1783048233000,-500.0,0.00025271,2]
[426947747,1783048233000,-500.0,0.00025271,2]
[426947746,1783048233000,-500.0,0.00025271,2]
[426947751,1783048233000,-500.0,0.00025271,2]
[426947752,1783048233000,-500.0,0.00025271,2]
[426947750,1783048233000,-195.03857716,0.00025271,2]
[426947722,1783048233000,-500.0,0.00025271,2]
[426947743,1783048233000,-500.0,0.00025271,2]
[426947723,1783048233000,-500.0,0.00025271,2]
[426947711,1783048233000,-500.0,0.00025271,2]
[426947727,1783048233000,-500.0,0.00025271,2]
[426947705,1783048233000,-500.0,0.00025271,2]
[426947707,1783048233000,-500.0,0.00025271,2]
[426947706,1783048233000,-500.0,0.00025271,2]
[426947704,1783048233000,-500.0,0.00025271,2]
[426947708,1783048233000,-500.0,0.00025271,2]
[426947709,1783048233000,-500.0,0.00025271,2]
[426947753,1783048233000,-500.0,0.00025271,2]
[426947710,1783048233000,-377.46970613,0.00025271,2]
[426947714,1783048233000,-500.0,0.00025271,2]
[426947712,1783048233000,-500.0,0.00025271,2]
[426947715,1783048233000,-500.0,0.00025271,2]
[426947719,1783048233000,-500.0,0.00025271,2]
[426947713,1783048233000,-500.0,0.00025271,2]
[426947716,1783048233000,-500.0,0.00025271,2]
[426947717,1783048233000,-500.0,0.00025271,2]
[426947718,1783048233000,-500.0,0.00025271,2]
[426947720,1783048233000,-500.0,0.00025271,2]
[426947721,1783048233000,-437.87245185,0.00025271,2]
[426947724,1783048233000,-500.0,0.00025271,2]
[426947729,1783048233000,-500.0,0.00025271,2]
[426947725,1783048233000,-500.0,0.00025271,2]
[426947726,1783048233000,-500.0,0.00025271,2]
[426947728,1783048233000,-500.0,0.00025271,2]
[426947730,1783048233000,-500.0,0.00025271,2]
[426947754,1783048233000,-500.0,0.00025271,2]
[426947738,1783048233000,-500.0,0.00025271,2]
[426947758,1783048233000,-500.0,0.00025271,2]
[426947785,1783048233000,-150.0,0.00025675,7]
[426947781,1783048233000,-11103.9048953,0.00025588,2]
[426947784,1783048233000,-7085.12,0.00025668,2]
[426947787,1783048233000,-7085.12,0.00025678,2]
[426947789,1783048233000,-500.0,0.00025687,2]
[426947790,1783048233000,-325.62330576,0.00025687,2]
[426947792,1783048233000,-510.06722813,0.00025687,2]
[426947795,1783048233000,-500.0,0.00025687,2]
[426947793,1783048233000,-500.0,0.00025687,2]
[426947797,1783048233000,-500.0,0.00025687,2]
[426947783,1783048233000,-3191.37555326,0.00025588,2]
[426947796,1783048233000,-500.0,0.00025687,2]
[426947791,1783048233000,-500.0,0.00025687,2]
[426947798,1783048233000,-13942.51422976,0.00025688,2]
[426947800,1783048233000,-260.3859301,0.00025677,2]
[426947799,1783048233000,-500.0,0.00025677,2]
[426947801,1783048233000,-239.6140699,0.00025677,2]
[426947803,1783048233000,-232.62925229,0.00025677,2]
[426947802,1783048233000,-569.28346475,0.00025677,2]
[426947804,1783048233000,-7844.86949739,0.00025688,2]
[426947805,1783048233000,-5941.17315993,0.00025688,2]
[426947760,1783048233000,-500.0,0.00025271,2]
[426947794,1783048233000,-500.0,0.00025687,2]
[426947782,1783048233000,-6076.8671,0.00025588,120]
[426947788,1783048233000,-500.0,0.00025687,2]
[426947779,1783048233000,-5608.8552,0.00025578,2]
[426947756,1783048233000,-500.0,0.00025271,2]
[426947755,1783048233000,-500.0,0.00025271,2]
[426947757,1783048233000,-500.0,0.00025271,2]
[426947761,1783048233000,-500.0,0.00025271,2]
[426947763,1783048233000,-500.0,0.00025271,2]
[426947780,1783048233000,-79030.05188912,0.00025588,2]
[426947759,1783048233000,-500.0,0.00025271,2]
[426947764,1783048233000,-380.0,0.00025271,2]
[426947765,1783048233000,-500.0,0.00025271,2]
[426947766,1783048233000,-500.0,0.00025271,2]
[426947769,1783048233000,-500.0,0.00025271,2]
[426947768,1783048233000,-500.0,0.00025271,2]
[426947762,1783048233000,-500.0,0.00025271,2]
[426947771,1783048233000,-500.0,0.00025271,2]
[426947772,1783048233000,-500.0,0.00025271,2]
[426947774,1783048233000,-192.39441462,0.00025397,2]
[426947767,1783048233000,-500.0,0.00025271,2]
[426947770,1783048233000,-500.0,0.00025271,2]
[426947776,1783048233000,-516.18220519,0.00025498,2]
[426947775,1783048233000,-944.71178554,0.00025403,2]
[426947778,1783048233000,-265.0,0.0002552,2]
[426947786,1783048233000,-500.0,0.00025676,2]
[426947777,1783048233000,-150.0,0.00025503,2]
[426947773,1783048233000,-46975.63,0.00025273,2]
[426947819,1783048237000,-500.0,0.00025677,2]
[426947829,1783048237000,-389.89,0.00025793,2]
[426947828,1783048237000,-398.18181817,0.0002569,2]
[426947820,1783048237000,-499.43991291,0.00025677,2]
[426947818,1783048237000,-500.0,0.00025677,2]
[426947812,1783048237000,-500.0,0.0002527,2]
[426947816,1783048237000,-500.0,0.00025677,2]
[426947817,1783048237000,-500.0,0.00025677,2]
[426947814,1783048237000,-603.67822581,0.00025677,2]
[426947811,1783048237000,-183.2,0.00024658,2]
[426947813,1783048237000,-196.43990855,0.00025677,2]
[426947821,1783048237000,-15667.85676792,0.00025688,2]
[426947815,1783048237000,-500.0,0.00025677,2]
[426947822,1783048237000,-203.75188298,0.00025688,2]
[426947830,1783048237000,-160.0,0.00025883,2]
[426947825,1783048237000,-6382.7739665,0.00025688,2]
[426947827,1783048237000,-378.20820216,0.00025688,2]
[426947826,1783048237000,-1610.9490611,0.00025688,2]
[426947823,1783048237000,-5581.6545765,0.00025688,2]
[426947832,1783048237000,-150.0,0.00025996,5]
[426947831,1783048237000,-944.71178554,0.00025914,2]
[426947834,1783048237000,-500.0,0.00025999,2]
[426947833,1783048237000,-224.35201974,0.00025999,2]
[426947835,1783048237000,-500.0,0.00025999,2]
[426947839,1783048237000,-4554.93,0.00026,2]
[426947837,1783048237000,-3817.29833453,0.00026,2]
[426947836,1783048237000,-500.0,0.00025999,2]
[426947840,1783048237000,-451.7681818,0.00026,2]
[426947838,1783048237000,-392.75953265,0.00026,2]
[426947824,1783048237000,-107731.3015692,0.00025688,2]
[426947842,1783048238000,-605.67545993,0.00026,2]
[426947841,1783048238000,-726.77210716,0.00026,2]
[426947843,1783048238000,-11943.51082057,0.00026,2]
[426947912,1783048239000,-8440.84598426,0.00026,2]
[426947913,1783048239000,-9080.37604949,0.00026,2]
[426947911,1783048239000,-821.8929984,0.00026,2]
[426947910,1783048239000,-850.10682554,0.00026,2]
[426947914,1783048240000,-57295.5187515,0.00026,2]
[426947924,1783048240000,-302.39000101,0.00026035,5]
[426947918,1783048240000,-303.39000101,0.0002601,5]
[426947915,1783048240000,-9845.9080258,0.00026,2]
[426947922,1783048240000,-151.6950005,0.00026024,5]
[426947920,1783048240000,-303.39000101,0.00026017,5]
[426947916,1783048240000,-154.56973677,0.00026,3]
[426947921,1783048240000,-303.39000101,0.0002602,5]
[426947919,1783048240000,-151.6950005,0.00026014,5]
[426947917,1783048240000,-151.6950005,0.00026008,5]
[426947930,1783048240000,-507.43030228,0.00026258,2]
[426947925,1783048240000,-3191.37555322,0.00026078,2]
[426947926,1783048240000,-160.94807633,0.00026082,14]
[426947931,1783048240000,-389.89,0.00026393,2]
[426947928,1783048240000,-166.3289979,0.00026152,2]
[426947932,1783048240000,-192.39441462,0.00026397,2]
[426947929,1783048240000,-181.35008824,0.00026152,2]
[426947927,1783048240000,-424.74451989,0.00026082,14]
[426947933,1783048240000,-26647.9048007,0.000264,2]
[426947934,1783048240000,-1209.29,0.000264,2]
[426947923,1783048240000,-151.6950005,0.00026028,5]
[426947938,1783048243000,-358.162991,0.00026404,2]
[426947937,1783048243000,-233.6935255,0.000264,2]
[426947940,1783048245000,-726.87529829,0.00026404,2]
[426947941,1783048543000,4431.0,0.0002,120]
[426947942,1783048867000,578.839983,7.945e-05,2]
[426947950,1783049301000,-500.0,0.00028999,120]
[426947949,1783049301000,-500.0,0.00028799,120]
[426947948,1783049301000,-1476.8,0.00027932,120]
[426947947,1783049301000,-486.17,0.00027567,120]
[426947946,1783049301000,-276.1782,0.000259,120]
[426947945,1783049301000,-215.63,0.00025001,120]
[426947952,1783049302000,-500.0,0.00029281,120]
[426947951,1783049302000,-238.04,0.00029,120]
[426947954,1783049302000,-307.1818,0.0003,120]
[426947953,1783049302000,-500.0,0.00029999,120]
[426947975,1783049431000,-1476.8,0.00024828,2]
[426947972,1783049431000,-532.76395495,0.00023123,2]
[426947969,1783049431000,-271.0,0.00022,10]
[426947970,1783049431000,-150.0,0.00022,2]
[426947968,1783049431000,-150.0,0.00021918,2]
[426947967,1783049431000,-582.36942825,0.00019373,2]
[426947966,1783049431000,-1507.31267175,0.00019373,2]
[426947965,1783049431000,-1544.4416048,0.00019373,2]
[426947963,1783049431000,-564.11843476,0.00018873,2]
[426947961,1783049431000,-362.5040224,0.00018123,2]
[426947959,1783049431000,-585.2339316,0.00017373,2]
[426947960,1783049431000,-38.07037981,0.00018123,2]
[426947964,1783049431000,-252.76655104,0.0001911,2]
[426947962,1783049431000,-468.30359058,0.00018873,2]
[426947958,1783049431000,-221.76219135,0.00017373,2]
[426947971,1783049431000,-195.76698858,0.00023016,2]
[426947974,1783049431000,-183.18,0.00024658,2]
[426947973,1783049431000,-4773.54362479,0.00024016,2]
[426947992,1783049431000,-200.0,0.00025201,2]
[426948001,1783049431000,-1825.0,0.00025291,2]
[426947998,1783049431000,-157.271867,0.00025271,2]
[426947988,1783049431000,-1244.9969098,0.00025112,21]
[426947984,1783049431000,-1854.17,0.00024999,2]
[426947986,1783049431000,-2013.0,0.00025,2]
[426947990,1783049431000,-216.74224685,0.00025177,2]
[426947976,1783049431000,-1222.8,0.00024834,2]
[426948003,1783049431000,-1222.8,0.00025455,2]
[426947982,1783049431000,-1210.72,0.00024957,2]
[426947994,1783049431000,-339.61112505,0.00025217,7]
[426947983,1783049431000,-510.64,0.00024961,7]
[426947981,1783049431000,-162.34037388,0.0002492,2]
[426947979,1783049431000,-151.93,0.00024902,2]
[426947980,1783049431000,-150.68,0.00024908,2]
[426947978,1783049431000,-5000.0,0.00024902,2]
[426947977,1783049431000,-672.9,0.00024871,2]
[426947996,1783049431000,-1792.0,0.00025219,2]
[426948007,1783049432000,-500.0,0.00025687,2]
[426948011,1783049432000,-26759.2339,0.00025783,120]
[426948005,1783049432000,-218.0,0.0002552,2]
[426948016,1783049432000,-1495.97,0.00025786,2]
[426948022,1783049432000,-9999.99,0.00025786,2]
[426948018,1783049432000,-3367.85,0.00025786,2]
[426948014,1783049432000,-999.99,0.00025786,2]
[426948020,1783049432000,-378.2,0.00025786,2]
[426948024,1783049432000,-2593.19456974,0.00025786,2]
[426948009,1783049432000,-500.0,0.00025687,2]
[426948077,1783049437000,-246.1583332,0.00025786,2]
[426948078,1783049437000,-4019.97709706,0.00025786,2]
[426948076,1783049437000,-183.18,0.00024658,2]
[426948112,1783049438000,-684.0,0.00026022,5]
[426948113,1783049438000,-669.0,0.00026026,5]
[426948111,1783049438000,-150.0,0.0002601,5]
[426948109,1783049438000,-5000.0,0.00026,7]
[426948106,1783049438000,-502.4845754,0.00025999,2]
[426948107,1783049438000,-11933.48937768,0.00026,2]
[426948114,1783049438000,-676.0,0.00026031,5]
[426948105,1783049438000,-500.0,0.00025999,2]
[426948104,1783049438000,-1120.63408577,0.00025999,2]
[426948110,1783049438000,-5033.0995527,0.00026,8]
[426948116,1783049438000,-666.0,0.00026041,5]
[426948120,1783049438000,-679.0,0.00026075,5]
[426948115,1783049438000,-672.0,0.00026036,5]
[426948119,1783049438000,-683.0,0.00026065,5]
[426948118,1783049438000,-677.0,0.00026056,5]
[426948122,1783049438000,-684.0,0.00026086,5]
[426948123,1783049438000,-686.0,0.00026099,5]
[426948121,1783049438000,-1222.8,0.00026076,2]
[426948125,1783049438000,-301.0,0.00026135,5]
[426948124,1783049438000,-672.0,0.00026117,5]
[426948108,1783049438000,-1421.305985,0.00026,2]
[426948130,1783049438000,-670.0,0.00026159,5]
[426948117,1783049438000,-663.0,0.00026048,5]
[426948102,1783049438000,-4179.2808,0.000259,2]
[426948127,1783049438000,-671.0,0.00026136,5]
[426948100,1783049438000,-214.693609,0.00025883,2]
[426948128,1783049438000,-688.0,0.0002614,5]
[426948079,1783049438000,-9999.99,0.00025786,2]
[426948080,1783049438000,-3004.94594094,0.00025786,2]
[426948081,1783049438000,-2364.51405906,0.00025786,2]
[426948082,1783049438000,-9566.29319634,0.00025786,2]
[426948083,1783049438000,-433.69680366,0.00025786,2]
[426948084,1783049438000,-245.07251381,0.00025786,20]
[426948085,1783049438000,-449.3404125,0.00025786,20]
[426948087,1783049438000,-8300.80088722,0.00025786,20]
[426948086,1783049438000,-524.25618647,0.00025786,20]
[426948089,1783049438000,-299.99,0.00025786,12]
[426948088,1783049438000,-9999.99,0.00025786,2]
[426948091,1783049438000,-579.02,0.00025786,2]
[426948093,1783049438000,-505.09794355,0.00025786,2]
[426948090,1783049438000,-150.99,0.00025786,2]
[426948092,1783049438000,-8427.37,0.00025786,2]
[426948096,1783049438000,-1108.1076509,0.00025883,2]
[426948094,1783049438000,-4918.36,0.00025863,2]
[426948095,1783049438000,-11466.1780424,0.00025883,2]
[426948098,1783049438000,-28973.0112273,0.00025883,2]
[426948097,1783049438000,-9304.3197758,0.00025883,2]
[426948099,1783049438000,-1741.9689812,0.00025883,2]
[426948101,1783049438000,-582.0162,0.000259,2]
[426948103,1783049438000,-158.95309332,0.0002597,2]
[426948129,1783049438000,-223.62783098,0.00026157,2]
[426948138,1783049438000,-173.13706703,0.00026174,2]
[426948126,1783049438000,-677.0,0.00026135,5]
[426948158,1783049438000,-484.88679943,0.0002659,2]
[426948160,1783049438000,-500.0,0.0002659,2]
[426948170,1783049438000,-500.0,0.0002659,2]
[426948161,1783049438000,-432.63605761,0.0002659,2]
[426948163,1783049438000,-500.0,0.0002659,2]
[426948162,1783049438000,-500.0,0.0002659,2]
[426948166,1783049438000,-500.0,0.0002659,2]
[426948165,1783049438000,-500.0,0.0002659,2]
[426948169,1783049438000,-500.0,0.0002659,2]
[426948168,1783049438000,-500.0,0.0002659,2]
[426948164,1783049438000,-500.0,0.0002659,2]
[426948131,1783049438000,-325.1854686,0.00026163,2]
[426948171,1783049438000,-500.0,0.0002659,2]
[426948172,1783049438000,-500.0,0.0002659,2]
[426948173,1783049438000,-500.0,0.0002659,2]
[426948174,1783049438000,-500.0,0.0002659,2]
[426948179,1783049438000,-500.0,0.0002659,2]
[426948175,1783049438000,-500.0,0.0002659,2]
[426948176,1783049438000,-500.0,0.0002659,2]
[426948177,1783049438000,-500.0,0.0002659,2]
[426948178,1783049438000,-500.0,0.0002659,2]
[426948181,1783049438000,-500.0,0.0002659,2]
[426948180,1783049438000,-500.0,0.0002659,2]
[426948159,1783049438000,-500.0,0.0002659,2]
[426948153,1783049438000,-500.0,0.0002659,2]
[426948167,1783049438000,-500.0,0.0002659,2]
[426948151,1783049438000,-500.0,0.0002659,2]
[426948155,1783049438000,-153.05218957,0.0002659,2]
[426948132,1783049438000,-329.61419238,0.00026163,2]
[426948133,1783049438000,-299.93166233,0.00026163,2]
[426948134,1783049438000,-304.01645275,0.00026163,2]
[426948136,1783049438000,-324.68074776,0.00026174,2]
[426948135,1783049438000,-169.9235876,0.00026163,2]
[426948143,1783049438000,-673.0,0.00026259,5]
[426948137,1783049438000,-165.14244693,0.00026174,2]
[426948139,1783049438000,-166.09353111,0.00026174,2]
[426948141,1783049438000,-150.38342792,0.00026174,2]
[426948142,1783049438000,-350.0,0.00026217,2]
[426948144,1783049438000,-516.3305178,0.00026404,2]
[426948145,1783049438000,-182.88835435,0.00026404,2]
[426948147,1783049438000,-2500.0,0.00026492,2]
[426948146,1783049438000,-155.01264153,0.00026404,3]
[426948148,1783049438000,-151.0,0.0002659,2]
[426948157,1783049438000,-500.0,0.0002659,2]
[426948152,1783049438000,-500.0,0.0002659,2]
[426948154,1783049438000,-500.0,0.0002659,2]
[426948150,1783049438000,-500.0,0.0002659,2]
[426948149,1783049438000,-151.0,0.0002659,2]
[426948140,1783049438000,-175.70286283,0.00026174,2]
[426948156,1783049438000,-500.0,0.0002659,2]
[426948224,1783049439000,-500.0,0.00026799,2]
[426948221,1783049439000,-1320.18749212,0.00026791,2]
[426948219,1783049439000,-879.431,0.00026731,90]
[426948218,1783049439000,-500.0,0.00026731,90]
[426948220,1783049439000,-1344.0,0.00026767,2]
[426948213,1783049439000,-6975.4785466,0.000267,2]
[426948216,1783049439000,-500.0,0.00026731,90]
[426948211,1783049439000,-180.66660096,0.000267,2]
[426948215,1783049439000,-350.0,0.00026717,2]
[426948223,1783049439000,-500.0,0.00026799,2]
[426948217,1783049439000,-500.0,0.00026731,90]
[426948214,1783049439000,-153.27888286,0.000267,2]
[426948229,1783049439000,-500.0,0.00026799,2]
[426948241,1783049439000,-500.0,0.00026799,2]
[426948225,1783049439000,-500.0,0.00026799,2]
[426948228,1783049439000,-500.0,0.00026799,2]
[426948226,1783049439000,-500.0,0.00026799,2]
[426948230,1783049439000,-494.16095271,0.00026799,2]
[426948232,1783049439000,-500.0,0.00026799,2]
[426948231,1783049439000,-500.0,0.00026799,2]
[426948233,1783049439000,-500.0,0.00026799,2]
[426948235,1783049439000,-500.0,0.00026799,2]
[426948239,1783049439000,-449.60793904,0.00026799,2]
[426948234,1783049439000,-500.0,0.00026799,2]
[426948237,1783049439000,-398.49842533,0.00026799,2]
[426948212,1783049439000,-3605.02169429,0.000267,2]
[426948227,1783049439000,-500.0,0.00026799,2]
[426948210,1783049439000,-256.35845154,0.000267,2]
[426948236,1783049439000,-567.99677537,0.00026799,2]